fUSD/lending_fUSD_20240428
["ID","MTS","AMOUNT","RATE_DAILY","PERIOD"]
[323771946,1714277439624,-150.0,0.00020761,2]
[323771947,1714277439634,-150.0,0.0002078,2]
[323771948,1714277439647,-150.0,0.00020797,2]
[323771949,1714277439656,-677.817,0.00020817,2]
[323771950,1714277439666,-150.0,0.00020832,2]
[323771951,1714277439675,-150.0,0.00020904,2]
[323771952,1714277439685,-503.54,0.00020917,2]
[323771953,1714277439935,-500.0,0.00020917,2]
[323771954,1714277439964,-500.0,0.00020917,2]
[323771955,1714277439975,-500.0,0.00020917,2]
[323771956,1714277439985,-500.0,0.00020917,2]
[323771957,1714277439995,-500.0,0.00020917,2]
[323771958,1714277440006,-500.0,0.00020917,2]
[323771959,1714277440016,-500.0,0.00020917,2]
[323771960,1714277440025,-500.0,0.00020917,2]
[323771961,1714277440035,-500.0,0.00020917,2]
[323771962,1714277440044,-500.0,0.00020917,2]
[323771963,1714277440053,-500.0,0.00020917,2]
[323771964,1714277440062,-500.0,0.00020917,2]
[323771965,1714277440071,-500.0,0.00020917,2]
[323771966,1714277440081,-500.0,0.00020917,2]
[323771967,1714277440090,-500.0,0.00020917,2]
[323771968,1714277440099,-500.0,0.00020917,2]
[323771970,1714277440109,-362.27,0.00020917,2]
[323771972,1714277440118,-500.0,0.00020917,2]
[323771973,1714277440127,-500.0,0.00020917,2]
[323771974,1714277440136,-500.0,0.00020917,2]
[323771975,1714277440146,-500.0,0.00020917,2]
[323771976,1714277440155,-500.0,0.00020917,2]
[323771977,1714277440164,-500.0,0.00020917,2]
[323771978,1714277440174,-500.0,0.00020917,2]
[323771979,1714277440183,-500.0,0.00020917,2]
[323771980,1714277440192,-500.0,0.00020917,2]
[323771981,1714277440201,-500.0,0.00020917,2]
[323771982,1714277440210,-500.0,0.00020917,2]
[323771983,1714277440221,-500.0,0.00020917,2]
[323771984,1714277440230,-500.0,0.00020917,2]
[323771985,1714277440239,-500.0,0.00020917,2]
[323771986,1714277440248,-500.0,0.00020917,2]
[323771987,1714277440257,-500.0,0.00020917,2]
[323771989,1714277440266,-500.0,0.00020917,2]
[323771992,1714277440275,-500.0,0.00020917,2]
[323771994,1714277440284,-500.0,0.00020917,2]
[323771995,1714277440293,-500.0,0.00020917,2]
[323771997,1714277440302,-500.0,0.00020917,2]
[323771998,1714277440311,-500.0,0.00020917,2]
[323771999,1714277440321,-500.0,0.00020917,2]
[323772001,1714277440330,-500.0,0.00020917,2]
[323772002,1714277440339,-500.0,0.00020917,2]
[323772003,1714277440349,-500.0,0.00020917,2]
[323772004,1714277440358,-500.0,0.00020917,2]
[323772005,1714277440367,-500.0,0.00020917,2]
[323772006,1714277440376,-500.0,0.00020917,2]
[323772008,1714277440385,-500.0,0.00020917,2]
[323772010,1714277440394,-500.0,0.00020917,2]
[323772011,1714277440403,-500.0,0.00020917,2]
[323772012,1714277440412,-500.0,0.00020917,2]
[323772013,1714277440422,-500.0,0.00020917,2]
[323772014,1714277440431,-500.0,0.00020917,2]
[323772015,1714277440440,-500.0,0.00020917,2]
[323772016,1714277440449,-500.0,0.00020917,2]
[323772017,1714277440458,-500.0,0.00020917,2]
[323772018,1714277440468,-500.0,0.00020917,2]
[323772019,1714277440477,-500.0,0.00020917,2]
[323772020,1714277440487,-500.0,0.00020917,2]
[323772021,1714277440497,-500.0,0.00020917,2]
[323772022,1714277440507,-413.41,0.00020917,2]
[323772023,1714277440516,-500.0,0.00020917,2]
[323772024,1714277440525,-150.0,0.00020919,2]
[323772025,1714277440535,-150.0,0.0002094,2]
[323772026,1714277440544,-150.0,0.0002096,2]
[323772027,1714277440553,-342.74,0.0002099,2]
[323772028,1714277440562,-1000.0,0.00020997,2]
[323772029,1714277440570,-811.15071928,0.00021,2]
[323772030,1714277440579,-12618.02434194,0.00021,2]
[323772031,1714277440589,-155.0,0.00021,2]
[323772032,1714277440598,-150.0,0.00021,2]
[323772033,1714277440607,-150.0,0.00021007,2]
[323772034,1714277440615,-150.0,0.00021009,2]
[323772035,1714277440625,-150.0,0.00021036,2]
[323772036,1714277440634,-150.0,0.00021038,2]
[323772037,1714277440644,-150.0,0.00021105,2]
[323772038,1714277440653,-150.0,0.00021126,2]
[323772039,1714277440662,-819.39,0.00021186,2]
[323772040,1714277440671,-150.0,0.00021187,2]
[323772041,1714277440680,-299.57073457,0.00021233,10]
[323772042,1714277440690,-150.0,0.00021285,2]
[323772043,1714277440699,-150.0,0.00021285,2]
[323772044,1714277440709,-150.0,0.00021353,2]
[323772045,1714277440719,-150.0,0.00021354,2]
[323772046,1714277440728,-150.0,0.00021359,2]
[323772047,1714277440737,-1000.0,0.0002138,2]
[323772048,1714277440746,-200.18300749,0.0002138,2]
[323772049,1714277440755,-160.07987314,0.0002138,2]
[323772050,1714277440765,-150.0,0.00021386,2]
[323772051,1714277440774,-162.42725162,0.00021462,2]
[323772052,1714277440782,-150.0,0.00021473,2]
[323772053,1714277440791,-200.0,0.00021473,2]
[323772054,1714277440800,-693.56337054,0.00021479,2]
[323772055,1714277440809,-9267.5605,0.0002148,2]
[323772056,1714277440818,-100000.0,0.0002148,2]
[323772057,1714277440827,-500.0,0.0002148,2]
[323772058,1714277440837,-166.79254619,0.0002148,2]
[323772059,1714277440847,-10000.0,0.0002148,2]
[323772060,1714277440857,-173.56943637,0.0002148,2]
[323772061,1714277440867,-151.29703378,0.0002148,2]
[323772062,1714277440876,-150.0,0.0002148,2]
[323772063,1714277440886,-8785.47977175,0.0002148,2]
[323772064,1714277440896,-200.18300749,0.0002148,2]
[323772065,1714277440905,-153.30227797,0.0002148,2]
[323772066,1714277440914,-5534.77065764,0.0002148,2]
[323772067,1714277440923,-209.3706008,0.0002148,3]
[323772068,1714277440932,-395.32368242,0.0002148,2]
[323772069,1714277440941,-150.0,0.00021492,2]
[323772070,1714277440951,-150.0,0.000215,3]
[323772071,1714277440960,-150.0,0.00021505,2]
[323772072,1714277440970,-1000.0,0.00021506,2]
[323772073,1714277440980,-1000.0,0.00021506,2]
[323772074,1714277440989,-500.0,0.00021506,2]
[323772075,1714277440998,-321.6,0.00021506,2]
[323772076,1714277441007,-200.0,0.00021506,2]
[323772077,1714277441016,-1000.0,0.00021506,2]
[323772078,1714277441025,-500.0,0.00021506,2]
[323772079,1714277441034,-200.0,0.00021506,2]
[323772080,1714277441043,-756.0,0.00021524,2]
[323772081,1714277441053,-521.0,0.00021524,2]
[323772082,1714277441062,-299.34,0.00021534,2]
[323772083,1714277441071,-150.0,0.00021555,5]
[323772084,1714277441082,-150.0,0.00021556,2]
[323772085,1714277441091,-800.0,0.00021562,2]
[323772086,1714277441101,-151.29703378,0.00021562,2]
[323772087,1714277441111,-342.74,0.00021567,2]
[323772088,1714277441123,-181.76387745,0.00021569,2]
[323772089,1714277441132,-181.76387745,0.00021569,2]
[323772090,1714277441142,-342.74,0.00021569,2]
[323772091,1714277441151,-342.74,0.00021569,2]
[323772092,1714277441161,-342.74,0.00021569,2]
[323772093,1714277441170,-342.74,0.00021569,2]
[323772094,1714277441180,-342.74,0.00021569,2]
[323772095,1714277441189,-342.74,0.00021569,2]
[323772096,1714277441199,-342.74,0.00021569,2]
[323772097,1714277441208,-342.74,0.00021569,2]
[323772098,1714277441218,-181.76387745,0.0002157,2]
[323772099,1714277441227,-150.0,0.00021571,2]
[323772100,1714277441236,-1000.0,0.00021571,2]
[323772101,1714277441246,-1057.1087,0.00021571,2]
[323772102,1714277441255,-953.19083685,0.00021577,2]
[323772103,1714277441264,-2513.93,0.00021577,2]
[323772104,1714277441274,-2513.93,0.00021577,2]
[323772105,1714277441283,-2513.93,0.00021577,2]
[323772106,1714277441292,-2513.93,0.00021577,2]
[323772107,1714277441301,-2513.93,0.00021577,2]
[323772108,1714277441310,-2513.93,0.00021577,2]
[323772109,1714277441319,-2513.93,0.00021577,2]
[323772110,1714277441328,-2513.93,0.00021577,2]
[323772111,1714277441338,-2513.93,0.00021577,2]
[323772112,1714277441349,-2513.93,0.00021577,2]
[323772113,1714277441359,-2513.93,0.00021577,2]
[323772114,1714277441368,-2513.93,0.00021577,2]
[323772115,1714277441377,-2513.93,0.00021577,2]
[323772116,1714277441388,-2513.93,0.00021577,2]
[323772117,1714277441397,-2513.93,0.00021577,2]
[323772118,1714277441406,-2513.93,0.00021577,2]
[323772119,1714277441415,-2513.93,0.00021577,2]
[323772120,1714277441425,-2513.93,0.00021577,2]
[323772121,1714277441436,-2513.93,0.00021577,2]
[323772122,1714277441446,-2513.93,0.00021577,2]
[323772123,1714277441455,-2513.93,0.00021577,2]
[323772124,1714277441465,-2513.93,0.00021577,2]
[323772125,1714277441477,-2513.93,0.00021577,2]
[323772126,1714277441488,-2513.96345598,0.00021577,2]
[323772127,1714277441497,-219.56561751,0.00021578,2]
[323772128,1714277441508,-534.35091008,0.00021578,2]
[323772129,1714277441519,-228.72385025,0.00021578,2]
[323772130,1714277441528,-178.75134766,0.00021578,2]
[323772131,1714277441537,-210.92940592,0.00021578,2]
[323772132,1714277441546,-789.84266525,0.00021578,2]
[323772133,1714277441555,-1767.55512764,0.00021578,2]
[323772134,1714277441565,-155.0,0.00021578,2]
[323772135,1714277441574,-6223.025544,0.00021578,2]
[323772136,1714277441583,-4310.52328207,0.00021579,2]
[323772137,1714277441593,-2599.25771803,0.00021579,2]
[323772138,1714277441602,-45210.69570605,0.00021579,2]
[323772139,1714277441612,-272755.65819144,0.0002158,2]
[323772140,1714277441633,-433170.43492301,0.0002158,2]
[323772141,1714277443090,-664.22497239,0.0002158,2]
[323772174,1714277444388,-3459.83225726,0.0002158,2]
[323772175,1714277444399,-273.61856126,0.0002158,2]
[323772176,1714277444410,-1704.35299466,0.0002158,2]
[323772210,1714277446839,-28075.14738851,0.0002158,2]
[323772211,1714277446850,-3277.48932495,0.0002158,2]
[323772247,1714278632069,-732.91429086,0.00012302,2]
[323772250,1714278632089,-816.24453498,0.00012302,2]
[323772253,1714278632108,-19.08599528,0.00012302,2]
[323772255,1714278632122,-155.0,0.00012302,2]
[323772256,1714278632131,-456.16194059,0.00012303,2]
[323772257,1714278632142,-210.27538342,0.00012326,2]
[323772259,1714278632165,-1080.49446647,0.00012326,2]
[323772261,1714278632174,-599.0,0.00012328,2]
[323772263,1714278632184,-150.0,0.00012389,2]
[323772265,1714278632194,-1072.12,0.0001239,2]
[323772267,1714278632203,-1072.12,0.0001239,2]
[323772269,1714278632213,-1072.12,0.0001239,2]
[323772271,1714278632222,-1072.12,0.000124,2]
[323772273,1714278632232,-1072.2634953,0.000129,2]
[323772275,1714278632241,-1072.12,0.00013,2]
[323772276,1714278632251,-600.0,0.00013013,2]
[323772277,1714278632262,-1072.12,0.000132,2]
[323772278,1714278632272,-1072.12,0.000132,2]
[323772279,1714278632282,-1072.12,0.000133,2]
[323772280,1714278632295,-20.03204075,0.000133,2]
[323772281,1714278632354,-1052.08795925,0.000133,2]
[323772282,1714278632364,-1072.12,0.000133,2]
[323772283,1714278632374,-150.0,0.000146,3]
[323772284,1714278632384,-989.0,0.00015,2]
[323772285,1714278632394,-150.0,0.0001536,3]
[323772286,1714278632404,-150.0,0.0001613,3]
[323772287,1714278632414,-311.28,0.00016434,2]
[323772288,1714278632424,-150.0,0.0001689,3]
[323772289,1714278632435,-161.24761534,0.00017086,2]
[323772290,1714278632446,-150.0,0.0001766,3]
[323772291,1714278632456,-277.602692,0.00017874,2]
[323772292,1714278632466,-1187.51881,0.00017874,2]
[323772293,1714278632476,-201.98806,0.00017874,2]
[323772294,1714278632487,-361.01173827,0.00017874,2]
[323772303,1714278637532,-228.16471773,0.00017874,2]
[323772304,1714278637542,-188.323892,0.00017874,2]
[323772305,1714278637551,-211.509505,0.00017874,2]
[323772306,1714278637560,-1187.51881,0.00018098,2]
[323772307,1714278637569,-589.176456,0.00018098,2]
[323772308,1714278637578,-500.0,0.00018172,2]
[323772309,1714278637587,-1187.51881,0.00018321,2]
[323772310,1714278637597,-589.176456,0.00018321,2]
[323772311,1714278637606,-171.92,0.00018328,2]
[323772312,1714278637615,-636.99,0.00018331,2]
[323772313,1714278637624,-200.0,0.00018331,2]
[323772314,1714278637634,-169.2,0.00018339,10]
[323772315,1714278637643,-250.0,0.00018344,2]
[323772316,1714278637652,-203.81,0.00018387,2]
[323772317,1714278637661,-150.0,0.0001842,3]
[323772318,1714278637670,-1187.51881,0.00018544,2]
[323772319,1714278637679,-589.176456,0.00018544,2]
[323772320,1714278637688,-150.0,0.00018619,2]
[323772321,1714278637698,-311.28,0.00018698,2]
[323772322,1714278637707,-201.98806,0.00018768,2]
[323772323,1714278637717,-188.323892,0.00018768,2]
[323772324,1714278637726,-1187.51881,0.00018768,2]
[323772325,1714278637735,-589.176456,0.00018768,2]
[323772326,1714278637745,-663.55,0.00018913,2]
[323772327,1714278637755,-8310.5604403,0.0001894,2]
[323772328,1714278637764,-150.0,0.00018954,2]
[323772329,1714278637773,-150.0,0.00019063,2]
[323772330,1714278637784,-163.09,0.00019153,2]
[323772331,1714278637794,-150.0,0.00019185,2]
[323772332,1714278637803,-150.0,0.0001919,3]
[323772333,1714278637813,-150.0,0.00019231,2]
[323772334,1714278637822,-150.0,0.00019292,2]
[323772335,1714278637831,-150.0,0.00019322,2]
[323772336,1714278637840,-150.0,0.00019394,2]
[323772337,1714278637849,-150.0,0.00019418,2]
[323772338,1714278637859,-150.0,0.00019475,2]
[323772339,1714278637868,-150.0,0.00019506,2]
[323772340,1714278637878,-150.0,0.00019559,2]
[323772341,1714278637887,-150.0,0.00019686,2]
[323772342,1714278637897,-150.0,0.00019711,2]
[323772343,1714278637907,-150.0,0.00019721,2]
[323772344,1714278637917,-150.0,0.00019731,2]
[323772345,1714278637927,-150.0,0.00019943,2]
[323772346,1714278637936,-150.0,0.0001995,3]
[323772347,1714278637945,-150.0,0.00019954,2]
[323772348,1714278637954,-150.0,0.00019975,2]
[323772349,1714278637964,-150.0,0.00020039,2]
[323772350,1714278637974,-150.0,0.00020039,2]
[323772351,1714278637985,-150.0,0.00020045,2]
[323772352,1714278637995,-150.0,0.00020072,2]
[323772353,1714278638005,-150.0,0.00020149,2]
[323772354,1714278638017,-150.0,0.00020165,2]
[323772355,1714278638027,-150.0,0.00020269,2]
[323772356,1714278638039,-150.0,0.00020278,2]
[323772357,1714278638050,-164.01189131,0.000203,2]
[323772358,1714278638062,-150.0,0.00020312,2]
[323772359,1714278638072,-150.0,0.00020343,2]
[323772360,1714278638081,-167.82,0.00020351,2]
[323772361,1714278638093,-150.0,0.00020359,2]
[323772362,1714278638105,-150.0,0.00020398,2]
[323772363,1714278638116,-150.0,0.00020413,2]
[323772364,1714278638128,-150.0,0.00020429,2]
[323772366,1714278638139,-150.0,0.00020459,2]
[323772368,1714278638152,-150.0,0.000205,2]
[323772369,1714278638164,-155.0,0.00020501,2]
[323772370,1714278638174,-150.0,0.00020507,2]
[323772371,1714278638184,-712.28,0.00020547,2]
[323772372,1714278638195,-1598.2735,0.00020563,2]
[323772373,1714278638206,-150.0,0.00020574,2]
[323772374,1714278638216,-807.19,0.00020594,2]
[323772375,1714278638226,-171.92,0.00020619,2]
[323772376,1714278638236,-155.0,0.00020661,2]
[323772377,1714278638246,-150.0,0.00020661,2]
[323772378,1714278638256,-810.197,0.00020663,2]
[323772379,1714278638266,-1859.0,0.00020663,2]
[323772380,1714278638276,-439.255,0.00020663,2]
[323772381,1714278638287,-258.11,0.00020663,2]
[323772382,1714278638297,-610.0,0.00020663,2]
[323772383,1714278638308,-150.641,0.00020663,2]
[323772384,1714278638318,-420.0,0.00020663,2]
[323772385,1714278638327,-2446.0,0.00020663,2]
[323772386,1714278638337,-3122.0,0.00020663,2]
[323772387,1714278638347,-1478.191,0.00020663,2]
[323772388,1714278638357,-1641.0,0.00020663,2]
[323772389,1714278638366,-214.0,0.00020663,2]
[323772390,1714278638376,-445.02,0.00020663,2]
[323772391,1714278638385,-150.492,0.00020663,2]
[323772392,1714278638395,-1140.0,0.00020663,2]
[323772393,1714278638405,-1394.0,0.00020663,2]
[323772394,1714278638414,-970.0,0.00020663,2]
[323772395,1714278638424,-5733.0,0.00020663,2]
[323772396,1714278638434,-5896.0,0.00020663,2]
[323772397,1714278638445,-462.0,0.00020663,2]
[323772398,1714278638456,-2297.0,0.00020663,2]
[323772399,1714278638466,-37714.0,0.00020663,2]
[323772400,1714278638477,-1257.0,0.00020663,2]
[323772401,1714278638488,-150.0,0.0002068,2]
[323772402,1714278638497,-150.0,0.00020694,2]
[323772403,1714278638508,-150.0,0.00020707,2]
[323772404,1714278638518,-150.0,0.0002072,3]
[323772405,1714278638528,-150.0,0.00020757,2]
[323772406,1714278638540,-150.0,0.00020809,2]
[323772407,1714278638550,-150.0,0.00020817,2]
[323772408,1714278638560,-712.28,0.00020821,2]
[323772409,1714278638571,-150.0,0.00020827,2]
[323772410,1714278638582,-167.36990592,0.000209,2]
[323772411,1714278638592,-165.76896418,0.000209,2]
[323772412,1714278638602,-150.0,0.0002094,2]
[323772413,1714278638613,-150.0,0.00020957,2]
[323772414,1714278638624,-311.28,0.00020962,2]
[323772415,1714278638634,-150.0,0.00020986,2]
[323772416,1714278638645,-150.0,0.00020986,2]
[323772417,1714278638655,-764.93142913,0.00020999,2]
[323772418,1714278638665,-155.0,0.00021,2]
[323772419,1714278638676,-12618.02434194,0.00021,2]
[323772420,1714278638686,-306278.07744806,0.00021,2]
[323772421,1714278638697,-1000.0,0.00021,2]
[323772422,1714278638709,-150.0,0.00021,2]
[323772423,1714278638719,-150.0,0.00021074,2]
[323772424,1714278638730,-155.0,0.00021091,2]
[323772425,1714278638741,-712.28,0.00021095,2]
[323772426,1714278638751,-152.62,0.00021096,2]
[323772427,1714278638761,-251.28,0.00021096,2]
[323772428,1714278638771,-350.84,0.00021096,2]
[323772429,1714278638781,-150.62,0.00021096,2]
[323772430,1714278638792,-165.15,0.00021096,2]
[323772431,1714278638802,-419.34,0.00021096,2]
[323772432,1714278638813,-529.7,0.00021096,2]
[323772433,1714278638822,-150.0,0.0002112,2]
[323772434,1714278638832,-203.81,0.00021127,2]
[323772435,1714278638841,-7349.58000359,0.00021153,2]
[323772436,1714278638852,-150.0,0.00021219,2]
[323772437,1714278638861,-150.0,0.00021231,2]
[323772438,1714278638873,-663.55,0.00021277,2]
[323772439,1714278638884,-150.0,0.00021302,2]
[323772440,1714278638893,-150.0,0.0002135,2]
[323772441,1714278638904,-712.28,0.00021369,2]
[323772442,1714278638915,-7500.0,0.0002138,2]
[323772443,1714278638925,-13434.60016069,0.0002138,2]
[323772444,1714278638937,-150.0,0.00021386,2]
[323772445,1714278638948,-150.0,0.00021423,2]
[323772446,1714278638960,-200.0,0.0002144,2]
[323772447,1714278638971,-200.0,0.00021457,2]
[323772448,1714278638982,-1000.0,0.00021457,2]
[323772449,1714278638993,-200.0,0.00021457,2]
[323772450,1714278639003,-161.774312,0.00021462,2]
[323772451,1714278639013,-198.0474717,0.0002147,2]
[323772452,1714278639025,-246.58960536,0.00021474,2]
[323772453,1714278639037,-3071.20810051,0.00021478,2]
[323772454,1714278639046,-1779.22913587,0.00021478,2]
[323772455,1714278639057,-41951.21326202,0.00021478,2]
[323772456,1714278639068,-575.86201296,0.00021478,2]
[323772457,1714278639078,-300.0,0.00021479,2]
[323772458,1714278639088,-11416.92232108,0.00021479,2]
[323772459,1714278639099,-5000.0,0.00021479,2]
[323772460,1714278639110,-100000.0,0.0002148,2]
[323772461,1714278639120,-500.0,0.0002148,2]
[323772462,1714278639130,-60160.79695165,0.0002148,2]
[323772463,1714278639145,-184839.20304835,0.0002148,2]
[323772464,1714278639155,-173.71415482,0.0002148,2]
[323772465,1714278639164,-169.38470817,0.0002148,2]
[323772466,1714278639173,-199.00022202,0.0002148,2]
[323772467,1714278639182,-151.29703378,0.0002148,2]
[323772468,1714278639193,-174.54400576,0.0002148,2]
[323772469,1714278639202,-11580.14405434,0.0002148,2]
[323772470,1714278639212,-150.0,0.0002148,3]
[323772471,1714278639221,-3689.8471051,0.0002148,2]
[323772472,1714278639231,-1001.86,0.000215,3]
[323772473,1714278639240,-150.0,0.000215,3]
[323772474,1714278639249,-150.0,0.0002152,2]
[323772475,1714278639258,-150.0,0.00021524,2]
[323772476,1714278639268,-150.0,0.00021529,2]
[323772477,1714278639278,-150.0,0.00021535,2]
[323772478,1714278639289,-151.29703378,0.00021561,2]
[323772479,1714278639298,-712.3756657,0.00021574,2]
[323772480,1714278639308,-3006.4290169,0.00021574,2]
[323772481,1714278639318,-4654.2555921,0.00021574,2]
[323772482,1714278639327,-5068.8184253,0.00021574,2]
[323772483,1714278639337,-405.42054663,0.00021578,2]
[323772484,1714278639347,-974.24905622,0.00021578,2]
[323772485,1714278639357,-361.03660492,0.00021578,2]
[323772486,1714278639366,-370.12698549,0.00021579,2]
[323772487,1714278639376,-708.99534153,0.00021579,2]
[323772488,1714278639386,-289.7751229,0.00021579,2]
[323772489,1714278639396,-5551.38232416,0.00021579,2]
[323772490,1714278639405,-536.0,0.00021579,2]
[323772491,1714278639415,-207501.27887504,0.0002158,2]
[323772492,1714278639427,-468.75,0.0002158,2]
[323772493,1714278639439,-2230.65,0.0002158,2]
[323772494,1714278639450,-2208.1150035,0.0002158,2]
[323772495,1714278639460,-2441.0,0.0002158,2]
[323772496,1714278639471,-3308.69685408,0.0002158,2]
[323772497,1714278639482,-1730.36105587,0.0002158,2]
[323772498,1714278639493,-1067930.53870334,0.0002158,2]
[323772499,1714278639503,-796.44791203,0.0002158,2]
[323772500,1714278639514,-381.33465368,0.0002158,2]
[323772507,1714278640167,-542.0,0.00020663,2]
[323772508,1714278640177,-8462.34196639,0.0002158,2]
[323772509,1714278640197,-585.51409628,0.0002158,2]
[323772510,1714278640213,-597.04929833,0.0002158,2]
[323772554,1714278642955,-1228.0,0.00020663,2]
[323772555,1714278642965,-747.0,0.00021524,2]
[323772556,1714278642975,-647698.8813328,0.0002158,2]
[323772557,1714278642984,-49719.15504911,0.0002158,2]
[323772558,1714278643008,-382.7350001,0.0002158,2]
[323772559,1714278643118,-32204.49999984,0.0002158,2]
[323772582,1714278645991,-1056.0,0.00020663,2]
[323772583,1714278646002,-150.0,0.00021096,2]
[323772584,1714278646011,-40.58900404,0.00021096,2]
[323772585,1714278646253,-378.75099596,0.00021096,2]
[323772586,1714278646264,-699.02057782,0.00021523,2]
[323772587,1714278646298,-300.97942218,0.00021523,2]
[323772588,1714278646309,-70.54057809,0.0002158,2]
[323772589,1714278646337,-4666.63838746,0.0002158,2]
[323772590,1714278646349,-317.53166409,0.0002158,2]
[323772603,1714279831699,-456.16194059,0.0001478,2]
[323772604,1714279831710,-370.19548805,0.00014789,2]
[323772605,1714279831721,-150.0,0.0001479,3]
[323772606,1714279831732,-1523.64257136,0.00015539,2]
[323772607,1714279831744,-3476.35742864,0.00015539,2]
[323772608,1714279831755,-150.0,0.0001554,3]
[323772609,1714279831765,-150.0,0.0001628,3]
[323772610,1714279831774,-350.22,0.0001676,2]
[323772611,1714279831785,-150.0,0.0001703,3]
[323772612,1714279831794,-150.0,0.0001778,3]
[323772613,1714279831804,-150.0,0.00017836,2]
[323772614,1714279831816,-169.69,0.00017836,2]
[323772615,1714279831826,-150.99,0.00017836,2]
[323772616,1714279831836,-158.15,0.00017836,2]
[323772617,1714279831845,-299.99,0.00017836,4]
[323772618,1714279831854,-561.56,0.00017836,2]
[323772619,1714279831866,-150.99,0.00017836,2]
[323772620,1714279831876,-150.0,0.00017873,2]
[323772621,1714279831885,-201.98806,0.00017874,2]
[323772622,1714279831895,-353.505873,0.00017874,2]
[323772623,1714279831906,-512.672302,0.00017874,2]
[323772624,1714279831918,-163.468235,0.00017874,2]
[323772625,1714279831928,-512.672303,0.00017874,2]
[323772626,1714279831938,-9188.9446,0.0001789,2]
[323772627,1714279831947,-3072.30580356,0.00018097,2]
[323772628,1714279831956,-353.505873,0.00018098,2]
[323772629,1714279831965,-512.672302,0.00018098,2]
[323772630,1714279831975,-163.468235,0.00018098,2]
[323772631,1714279831986,-512.672303,0.00018098,2]
[323772632,1714279831996,-353.505873,0.00018321,2]
[323772633,1714279832007,-512.672302,0.00018321,2]
[323772634,1714279832017,-163.468235,0.00018321,2]
[323772635,1714279832028,-512.672303,0.00018321,2]
[323772636,1714279832037,-381.6,0.0001851,2]
[323772637,1714279832046,-150.0,0.00018511,2]
[323772638,1714279832055,-150.0,0.00018528,2]
[323772639,1714279832064,-150.0,0.0001853,3]
[323772640,1714279832074,-353.505873,0.00018544,2]
[323772641,1714279832083,-512.672302,0.00018544,2]
[323772642,1714279832094,-163.468235,0.00018544,2]
[323772643,1714279832104,-512.672303,0.00018544,2]
[323772644,1714279832114,-150.0,0.00018548,2]
[323772645,1714279832122,-200.0,0.00018555,2]
[323772646,1714279832131,-152.53,0.00018636,2]
[323772647,1714279832140,-150.0,0.00018652,2]
[323772648,1714279832151,-1140.42,0.00018671,2]
[323772649,1714279832165,-152.53,0.00018717,2]
[323772650,1714279832175,-353.505873,0.00018768,2]
[323772651,1714279832186,-512.672302,0.00018768,2]
[323772652,1714279832197,-163.468235,0.00018768,2]
[323772653,1714279832208,-512.672303,0.00018768,2]
[323772654,1714279832219,-152.53,0.00018798,2]
[323772655,1714279832229,-152.53,0.00018879,2]
[323772656,1714279832238,-150.0,0.00018892,2]
[323772657,1714279832248,-150.0,0.00018896,2]
[323772658,1714279832258,-152.53,0.0001896,2]
[323772659,1714279832268,-150.0,0.00019008,2]
[323772660,1714279832278,-350.22,0.00019024,2]
[323772661,1714279832287,-152.53,0.00019041,2]
[323772662,1714279832298,-150.0,0.00019049,2]